fUST/lending_fUST_20250220
["ID","MTS","AMOUNT","RATE_DAILY","PERIOD"]
[353710995,1739995846434,-505.3,0.00013945,2]
[353710997,1739995846443,-500.0,0.00013945,2]
[353710999,1739995846452,-500.0,0.00013945,2]
[353711001,1739995846462,-2445.46,0.00013945,2]
[353711003,1739995846472,-500.0,0.00013945,2]
[353711006,1739995846482,-23492.85,0.00013945,2]
[353711007,1739995846492,-500.0,0.00013945,2]
[353711009,1739995846501,-500.0,0.00013945,2]
[353711011,1739995846511,-500.0,0.00013945,2]
[353711014,1739995846520,-500.0,0.00014027,2]
[353711016,1739995846530,-500.0,0.00014027,2]
[353711018,1739995846540,-501.73815508,0.00014027,2]
[353711020,1739995846549,-500.0,0.00014027,2]
[353711021,1739995846558,-500.0,0.00014027,2]
[353711023,1739995846568,-500.0,0.00014027,2]
[353711026,1739995846577,-500.0,0.00014027,2]
[353711028,1739995846587,-500.0,0.00014027,2]
[353711030,1739995846596,-500.0,0.00014027,2]
[353711032,1739995846606,-500.0,0.00014027,2]
[353711034,1739995846615,-500.0,0.00014027,2]
[353711036,1739995846625,-500.0,0.00014027,2]
[353711038,1739995846634,-500.0,0.00014027,2]
[353711040,1739995846643,-500.0,0.00014027,2]
[353711041,1739995846652,-500.0,0.00014027,2]
[353711043,1739995846662,-500.0,0.00014027,2]
[353711045,1739995846672,-487.29448985,0.00014027,2]
[353711048,1739995846681,-491.26987979,0.00014027,2]
[353711050,1739995846691,-500.0,0.00014027,2]
[353711052,1739995846701,-607.54,0.00014027,2]
[353711054,1739995846710,-500.0,0.00014027,2]
[353711056,1739995846720,-500.0,0.00014027,2]
[353711058,1739995846730,-635.03976938,0.00014027,2]
[353711059,1739995846739,-500.0,0.00014027,2]
[353711061,1739995846750,-500.0,0.00014027,2]
[353711064,1739995846760,-500.0,0.00014027,2]
[353711066,1739995846770,-500.0,0.00014027,2]
[353711068,1739995846779,-500.0,0.00014027,2]
[353711070,1739995846789,-1361.58,0.00014027,2]
[353711072,1739995846799,-500.0,0.00014027,2]
[353711074,1739995846808,-535.42,0.00014027,2]
[353711076,1739995846817,-662.89,0.00014027,2]
[353711078,1739995846827,-500.0,0.00014027,2]
[353711080,1739995846836,-500.0,0.00014027,2]
[353711082,1739995846845,-1052.75,0.00014027,2]
[353711084,1739995846855,-4949.66,0.00014027,2]
[353711086,1739995846865,-500.0,0.00014027,2]
[353711088,1739995846874,-1622.89,0.00014027,2]
[353711090,1739995846885,-500.0,0.00014027,2]
[353711092,1739995846894,-540.74,0.00014027,2]
[353711094,1739995846903,-500.0,0.00014027,2]
[353711096,1739995846912,-872.69,0.00014027,2]
[353711098,1739995846923,-500.0,0.00014027,2]
[353711100,1739995846932,-884.51,0.00014027,2]
[353711102,1739995846942,-521.52,0.00014027,2]
[353711104,1739995846953,-500.0,0.00014027,2]
[353711106,1739995846964,-568.75,0.00014027,2]
[353711108,1739995846974,-500.0,0.00014027,2]
[353711110,1739995846983,-152.23276006,0.00014027,2]
[353711112,1739995846993,-500.0,0.00014027,2]
[353711114,1739995847002,-500.0,0.00014027,2]
[353711116,1739995847012,-500.0,0.00014027,2]
[353711118,1739995847022,-500.0,0.00014027,2]
[353711120,1739995847032,-500.0,0.00014027,2]
[353711122,1739995847041,-624.56,0.00014027,2]
[353711125,1739995847051,-500.0,0.00014027,2]
[353711127,1739995847060,-500.0,0.00014027,2]
[353711129,1739995847069,-495.61970288,0.00014027,2]
[353711131,1739995847082,-500.0,0.00014027,2]
[353711133,1739995847091,-1483.63,0.00014027,2]
[353711135,1739995847101,-500.0,0.00014027,2]
[353711137,1739995847111,-500.0,0.00014027,2]
[353711139,1739995847122,-873.64,0.00014027,2]
[353711147,1739995847198,-500.0,0.00014027,2]
[353711150,1739995847208,-742.44,0.00014027,2]
[353711152,1739995847218,-1659.74,0.00014027,2]
[353711154,1739995847227,-3980.98,0.00014027,2]
[353711156,1739995847236,-2091.83,0.00014027,2]
[353711158,1739995847246,-500.0,0.00014027,2]
[353711160,1739995847256,-500.0,0.00014027,2]
[353711162,1739995847265,-500.0,0.00014027,2]
[353711164,1739995847275,-956.02,0.00014027,2]
[353711166,1739995847284,-6302.46,0.00014027,2]
[353711168,1739995847294,-1045.61,0.00014027,2]
[353711170,1739995847304,-500.0,0.00014027,2]
[353711172,1739995847314,-500.0,0.00014027,2]
[353711174,1739995847323,-1626.86,0.00014027,2]
[353711176,1739995847333,-883.52,0.00014027,2]
[353711178,1739995847343,-608.0,0.00014027,2]
[353711180,1739995847353,-500.0,0.00014027,2]
[353711182,1739995847363,-1309.08,0.00014027,2]
[353711184,1739995847374,-500.0,0.00014027,2]
[353711186,1739995847384,-505.3,0.00014027,2]
[353711188,1739995847394,-500.0,0.00014027,2]
[353711190,1739995847404,-500.0,0.00014027,2]
[353711192,1739995847414,-2445.46,0.00014027,2]
[353711194,1739995847423,-500.0,0.00014027,2]
[353711196,1739995847434,-23492.85,0.00014027,2]
[353711199,1739995847444,-500.0,0.00014027,2]
[353711201,1739995847455,-481.0785654,0.00014027,2]
[353711203,1739995847465,-500.0,0.00014027,2]
[353711205,1739995847475,-431.79505072,0.00014091,2]
[353711207,1739995847485,-431.79505072,0.00014091,2]
[353711209,1739995847495,-431.79505072,0.00014091,2]
[353711211,1739995847504,-431.79505072,0.00014091,2]
[353711213,1739995847514,-431.79505072,0.00014091,2]
[353711215,1739995847524,-431.79505072,0.00014091,2]
[353711217,1739995847533,-431.79505072,0.00014091,2]
[353711219,1739995847543,-431.79505072,0.00014091,2]
[353711221,1739995847552,-431.79505072,0.00014091,2]
[353711223,1739995847562,-431.79505072,0.00014091,2]
[353711225,1739995847571,-431.79505072,0.00014091,2]
[353711227,1739995847581,-431.79505072,0.00014091,2]
[353711229,1739995847591,-431.79505072,0.00014091,2]
[353711231,1739995847600,-431.79505072,0.00014091,2]
[353711233,1739995847610,-431.79505072,0.00014091,2]
[353711236,1739995847620,-431.79505072,0.00014091,2]
[353711237,1739995847630,-431.79505072,0.00014091,2]
[353711240,1739995847640,-431.79505072,0.00014091,2]
[353711242,1739995847649,-431.79505072,0.00014091,2]
[353711244,1739995847658,-431.79,0.00014091,2]
[353711246,1739995847668,-155.9544811,0.00014091,2]
[353711248,1739995847677,-155.9544811,0.00014091,2]
[353711250,1739995847686,-155.9544811,0.00014091,2]
[353711252,1739995847695,-155.9544811,0.00014091,2]
[353711254,1739995847705,-155.9544811,0.00014091,2]
[353711256,1739995847715,-155.9544811,0.00014091,2]
[353711258,1739995847725,-155.9544811,0.00014091,2]
[353711260,1739995847734,-155.9544811,0.00014091,2]
[353711262,1739995847743,-155.9544811,0.00014091,2]
[353711264,1739995847753,-155.9544811,0.00014091,2]
[353711266,1739995847763,-155.9544811,0.00014091,2]
[353711268,1739995847772,-155.9544811,0.00014091,2]
[353711270,1739995847782,-155.9544811,0.00014091,2]
[353711272,1739995847791,-155.9544811,0.00014091,2]
[353711274,1739995847801,-155.9544811,0.00014091,2]
[353711276,1739995847810,-155.95,0.00014091,2]
[353711278,1739995847820,-151.0,0.000141,2]
[353711280,1739995847829,-151.0,0.000141,2]
[353711282,1739995847839,-151.0,0.000141,2]
[353711284,1739995847848,-151.0,0.000141,2]
[353711286,1739995847858,-500.0,0.00014109,2]
[353711288,1739995847867,-500.0,0.00014109,2]
[353711290,1739995847877,-500.0,0.00014109,2]
[353711292,1739995847887,-500.0,0.00014109,2]
[353711294,1739995847897,-500.0,0.00014109,2]
[353711296,1739995847907,-500.0,0.00014109,2]
[353711298,1739995847918,-500.0,0.00014109,2]
[353711300,1739995847929,-543.28,0.00014109,2]
[353711302,1739995847939,-500.0,0.00014109,2]
[353711304,1739995847949,-500.0,0.00014109,2]
[353711306,1739995847959,-161.48481865,0.00014109,2]
[353711308,1739995847969,-500.0,0.00014109,2]
[353711310,1739995847980,-607.54,0.00014109,2]
[353711312,1739995847989,-500.0,0.00014109,2]
[353711314,1739995847999,-500.0,0.00014109,2]
[353711315,1739995848008,-500.0,0.00014109,2]
[353711317,1739995848019,-500.0,0.00014109,2]
[353711319,1739995848029,-500.0,0.00014109,2]
[353711322,1739995848040,-1361.58,0.00014109,2]
[353711323,1739995848050,-535.42,0.00014109,2]
[353711325,1739995848060,-662.89,0.00014109,2]
[353711327,1739995848070,-500.0,0.00014109,2]
[353711329,1739995848082,-500.0,0.00014109,2]
[353711331,1739995848091,-1052.75,0.00014109,2]
[353711333,1739995848101,-4949.66,0.00014109,2]
[353711335,1739995848111,-503.13017325,0.00014109,2]
[353711337,1739995848123,-1622.89,0.00014109,2]
[353711339,1739995848133,-500.0,0.00014109,2]
[353711341,1739995848143,-540.74,0.00014109,2]
[353711343,1739995848153,-500.0,0.00014109,2]
[353711345,1739995848164,-872.69,0.00014109,2]
[353711347,1739995848174,-611.96,0.00014109,2]
[353711349,1739995848184,-884.51,0.00014109,2]
[353711351,1739995848194,-521.52,0.00014109,2]
[353711353,1739995848204,-568.75,0.00014109,2]
[353711355,1739995848214,-500.0,0.00014109,2]
[353711357,1739995848224,-500.0,0.00014109,2]
[353711359,1739995848234,-259.25194406,0.00014109,2]
[353711361,1739995848243,-561.65,0.00014109,2]
[353711363,1739995848253,-500.0,0.00014109,2]
[353711365,1739995848263,-500.0,0.00014109,2]
[353711367,1739995848274,-500.0,0.00014109,2]
[353711369,1739995848283,-624.56,0.00014109,2]
[353711371,1739995848293,-523.47,0.00014109,2]
[353711373,1739995848303,-1483.63,0.00014109,2]
[353711375,1739995848313,-500.0,0.00014109,2]
[353711377,1739995848323,-500.0,0.00014109,2]
[353711379,1739995848333,-873.64,0.00014109,2]
[353711381,1739995848342,-500.0,0.00014109,2]
[353711383,1739995848351,-742.44,0.00014109,2]
[353711385,1739995848360,-1659.74,0.00014109,2]
[353711387,1739995848370,-3980.98,0.00014109,2]
[353711389,1739995848379,-2091.83,0.00014109,2]
[353711391,1739995848389,-598.75986233,0.00014109,2]
[353711393,1739995848398,-500.0,0.00014109,2]
[353711395,1739995848407,-500.0,0.00014109,2]
[353711397,1739995848420,-956.02,0.00014109,2]
[353711405,1739995848495,-6302.46,0.00014109,2]
[353711407,1739995848505,-1045.61,0.00014109,2]
[353711409,1739995848515,-500.0,0.00014109,2]
[353711411,1739995848524,-1626.86,0.00014109,2]
[353711413,1739995848534,-883.52,0.00014109,2]
[353711415,1739995848544,-608.0,0.00014109,2]
[353711417,1739995848555,-500.0,0.00014109,2]
[353711419,1739995848565,-1309.08,0.00014109,2]
[353711421,1739995848575,-500.0,0.00014109,2]
[353711423,1739995848585,-505.3,0.00014109,2]
[353711425,1739995848595,-500.0,0.00014109,2]
[353711427,1739995848605,-500.0,0.00014109,2]
[353711429,1739995848616,-2445.46,0.00014109,2]
[353711431,1739995848627,-23492.85,0.00014109,2]
[353711433,1739995848637,-500.0,0.00014109,2]
[353711435,1739995848647,-500.0,0.00014109,2]
[353711437,1739995848658,-500.0,0.00014173,2]
[353711439,1739995848668,-345.42438499,0.00014173,2]
[353711441,1739995848678,-165.25175723,0.00014173,2]
[353711443,1739995848689,-500.0,0.00014173,2]
[353711446,1739995848699,-500.0,0.00014173,2]
[353711448,1739995848709,-331.98758965,0.00014173,2]
[353711450,1739995848719,-193.0,0.00014184,2]
[353711452,1739995848729,-500.0,0.00014191,2]
[353711453,1739995848739,-500.0,0.00014191,2]
[353711455,1739995848748,-500.0,0.00014191,2]
[353711457,1739995848758,-500.0,0.00014191,2]
[353711459,1739995848768,-500.0,0.00014191,2]
[353711462,1739995848778,-500.0,0.00014191,2]
[353711464,1739995848787,-500.0,0.00014191,2]
[353711466,1739995848797,-500.0,0.00014191,2]
[353711467,1739995848807,-500.0,0.00014191,2]
[353711470,1739995848817,-607.54,0.00014191,2]
[353711472,1739995848828,-500.0,0.00014191,2]
[353711473,1739995848837,-500.0,0.00014191,2]
[353711475,1739995848846,-500.0,0.00014191,2]
[353711477,1739995848856,-500.0,0.00014191,2]
[353711479,1739995848867,-1361.58,0.00014191,2]
[353711482,1739995848877,-535.42,0.00014191,2]
[353711483,1739995848887,-662.89,0.00014191,2]
[353711485,1739995848896,-500.0,0.00014191,2]
[353711487,1739995848906,-500.0,0.00014191,2]
[353711489,1739995848917,-1052.75,0.00014191,2]
[353711491,1739995848927,-4949.66,0.00014191,2]
[353711493,1739995848937,-1622.89,0.00014191,2]
[353711495,1739995848946,-500.0,0.00014191,2]
[353711497,1739995848956,-540.74,0.00014191,2]
[353711499,1739995848966,-500.0,0.00014191,2]
[353711501,1739995848975,-872.69,0.00014191,2]
[353711503,1739995848985,-884.51,0.00014191,2]
[353711505,1739995848995,-521.52,0.00014191,2]
[353711507,1739995849005,-568.75,0.00014191,2]
[353711509,1739995849015,-276.29026402,0.00014191,2]
[353711511,1739995849025,-363.40429969,0.00014191,2]
[353711513,1739995849034,-500.0,0.00014191,2]
[353711515,1739995849044,-500.0,0.00014191,2]
[353711517,1739995849053,-624.56,0.00014191,2]
[353711519,1739995849063,-1483.63,0.00014191,2]
[353711521,1739995849074,-500.0,0.00014191,2]
[353711523,1739995849087,-500.0,0.00014191,2]
[353711525,1739995849097,-873.64,0.00014191,2]
[353711527,1739995849106,-742.44,0.00014191,2]
[353711529,1739995849116,-1659.74,0.00014191,2]
[353711531,1739995849127,-3980.98,0.00014191,2]
[353711533,1739995849136,-2091.83,0.00014191,2]
[353711535,1739995849146,-500.0,0.00014191,2]
[353711537,1739995849155,-500.0,0.00014191,2]
[353711539,1739995849166,-956.02,0.00014191,2]
[353711541,1739995849176,-6302.46,0.00014191,2]
[353711543,1739995849186,-1045.61,0.00014191,2]
[353711545,1739995849195,-500.0,0.00014191,2]
[353711547,1739995849205,-1626.86,0.00014191,2]
[353711549,1739995849215,-883.52,0.00014191,2]
[353711551,1739995849225,-608.0,0.00014191,2]
[353711553,1739995849235,-212.66,0.00014191,2]
[353711555,1739995849245,-1309.08,0.00014191,2]
[353711557,1739995849255,-500.0,0.00014191,2]
[353711559,1739995849265,-505.3,0.00014191,2]
[353711561,1739995849275,-500.0,0.00014191,2]
[353711563,1739995849285,-500.0,0.00014191,2]
[353711566,1739995849295,-2445.46,0.00014191,2]
[353711567,1739995849305,-23492.85,0.00014191,2]
[353711570,1739995849316,-500.0,0.00014191,2]
[353711571,1739995849325,-500.0,0.00014191,2]
[353711573,1739995849335,-151.0,0.000142,2]
[353711576,1739995849346,-151.0,0.000142,2]
[353711577,1739995849356,-500.50517202,0.00014247,2]
[353711579,1739995849368,-151.0,0.00014273,2]
[353711582,1739995849385,-151.0,0.00014273,2]
[353711583,1739995849396,-500.0,0.00014273,2]
[353711585,1739995849406,-500.0,0.00014273,2]
[353711587,1739995849417,-500.0,0.00014273,2]
[353711589,1739995849428,-500.0,0.00014273,2]
[353711591,1739995849439,-280.74205564,0.00014273,2]
[353711593,1739995849450,-500.0,0.00014273,2]
[353711595,1739995849460,-500.0,0.00014273,2]
[353711597,1739995849470,-500.0,0.00014273,2]
[353711599,1739995849480,-500.0,0.00014273,2]
[353711602,1739995849491,-607.54,0.00014273,2]
[353711603,1739995849500,-500.0,0.00014273,2]
[353711606,1739995849510,-500.0,0.00014273,2]
[353711607,1739995849520,-500.0,0.00014273,2]
[353711609,1739995849531,-500.0,0.00014273,2]
[353711612,1739995849541,-1361.58,0.00014273,2]
[353711614,1739995849551,-535.42,0.00014273,2]
[353711615,1739995849560,-662.89,0.00014273,2]
[353711618,1739995849572,-500.0,0.00014273,2]
[353711620,1739995849582,-500.0,0.00014273,2]
[353711621,1739995849593,-1052.75,0.00014273,2]
[353711624,1739995849603,-4949.66,0.00014273,2]
[353711625,1739995849613,-1622.89,0.00014273,2]
[353711627,1739995849623,-500.0,0.00014273,2]
[353711629,1739995849632,-540.74,0.00014273,2]
[353711632,1739995849642,-500.0,0.00014273,2]
[353711640,1739995849651,-872.69,0.00014273,2]
[353711643,1739995849730,-884.51,0.00014273,2]
[353711645,1739995849741,-521.52,0.00014273,2]
[353711647,1739995849751,-568.75,0.00014273,2]
[353711649,1739995849761,-500.0,0.00014273,2]
[353711651,1739995849771,-500.0,0.00014273,2]
[353711653,1739995849782,-624.56,0.00014273,2]
[353711655,1739995849791,-1483.63,0.00014273,2]
[353711657,1739995849801,-500.0,0.00014273,2]
[353711659,1739995849811,-500.0,0.00014273,2]
[353711661,1739995849820,-873.64,0.00014273,2]
[353711663,1739995849831,-742.44,0.00014273,2]
[353711665,1739995849841,-3980.98,0.00014273,2]
[353711667,1739995849851,-1659.74,0.00014273,2]
[353711669,1739995849861,-2091.83,0.00014273,2]
[353711671,1739995849871,-500.0,0.00014273,2]
[353711673,1739995849880,-500.0,0.00014273,2]
[353711675,1739995849891,-956.02,0.00014273,2]
[353711677,1739995849901,-6302.46,0.00014273,2]
[353711679,1739995849910,-1045.61,0.00014273,2]
[353711681,1739995849923,-500.0,0.00014273,2]
[353711683,1739995849933,-1626.86,0.00014273,2]
[353711685,1739995849943,-883.52,0.00014273,2]
[353711687,1739995849953,-608.0,0.00014273,2]
[353711689,1739995849963,-1309.08,0.00014273,2]
[353711691,1739995849973,-500.0,0.00014273,2]
[353711693,1739995849982,-505.3,0.00014273,2]
[353711695,1739995849992,-500.0,0.00014273,2]
[353711697,1739995850002,-364.62900794,0.00014273,2]
[353711699,1739995850012,-2445.46,0.00014273,2]
[353711701,1739995850021,-23492.85,0.00014273,2]
[353711703,1739995850031,-500.0,0.00014273,2]
[353711704,1739995850041,-500.0,0.00014273,2]
[353711706,1739995850050,-151.0,0.000143,2]
[353711708,1739995850060,-151.0,0.000143,2]
[353711710,1739995850069,-1000.0,0.00014321,2]
[353711712,1739995850082,-1000.0,0.00014321,2]
[353711714,1739995850092,-500.0,0.00014356,2]
[353711716,1739995850102,-500.0,0.00014356,2]
[353711718,1739995850112,-500.0,0.00014356,2]
[353711720,1739995850123,-500.0,0.00014356,2]
[353711722,1739995850133,-500.0,0.00014356,2]
[353711724,1739995850143,-500.0,0.00014356,2]
[353711726,1739995850154,-500.0,0.00014356,2]
[353711728,1739995850166,-607.54,0.00014356,2]
[353711730,1739995850176,-500.0,0.00014356,2]
[353711732,1739995850185,-500.0,0.00014356,2]
[353711734,1739995850195,-500.0,0.00014356,2]
[353711736,1739995850205,-500.0,0.00014356,2]
[353711737,1739995850214,-1361.58,0.00014356,2]
[353711739,1739995850224,-535.42,0.00014356,2]
[353711741,1739995850234,-662.89,0.00014356,2]
[353711743,1739995850244,-500.0,0.00014356,2]
[353711745,1739995850255,-392.6949384,0.00014356,2]
[353711747,1739995850266,-1052.75,0.00014356,2]
[353711749,1739995850276,-4949.66,0.00014356,2]
[353711751,1739995850285,-1622.89,0.00014356,2]
[353711753,1739995850295,-500.0,0.00014356,2]
[353711755,1739995850305,-540.74,0.00014356,2]
[353711757,1739995850315,-500.0,0.00014356,2]
[353711759,1739995850324,-872.69,0.00014356,2]
[353711761,1739995850335,-884.51,0.00014356,2]
[353711763,1739995850345,-521.52,0.00014356,2]
[353711765,1739995850355,-568.75,0.00014356,2]
[353711767,1739995850365,-500.0,0.00014356,2]
[353711769,1739995850375,-500.0,0.00014356,2]
[353711771,1739995850385,-624.56,0.00014356,2]
[353711773,1739995850396,-1483.63,0.00014356,2]
[353711775,1739995850405,-500.0,0.00014356,2]
[353711777,1739995850416,-341.42,0.00014356,2]
[353711779,1739995850426,-873.64,0.00014356,2]
[353711781,1739995850436,-742.44,0.00014356,2]
[353711783,1739995850446,-3980.98,0.00014356,2]
[353711785,1739995850456,-1659.74,0.00014356,2]
[353711787,1739995850465,-2091.83,0.00014356,2]
[353711789,1739995850477,-636.20399265,0.00014356,2]
[353711791,1739995850488,-500.0,0.00014356,2]
[353711793,1739995850497,-956.02,0.00014356,2]
[353711795,1739995850507,-6302.46,0.00014356,2]
[353711797,1739995850516,-1045.61,0.00014356,2]
[353711799,1739995850526,-500.0,0.00014356,2]
[353711801,1739995850538,-1626.86,0.00014356,2]
[353711803,1739995850548,-883.52,0.00014356,2]
[353711805,1739995850558,-608.0,0.00014356,2]
[353711807,1739995850566,-1309.08,0.00014356,2]
[353711809,1739995850576,-500.0,0.00014356,2]
[353711811,1739995850586,-505.3,0.00014356,2]
[353711812,1739995850596,-500.0,0.00014356,2]
[353711814,1739995850606,-2445.46,0.00014356,2]
[353711816,1739995850616,-23492.85,0.00014356,2]
[353711818,1739995850625,-500.0,0.00014356,2]
[353711820,1739995850635,-500.0,0.00014356,2]
[353711822,1739995850644,-151.0,0.000144,2]
[353711824,1739995850654,-151.0,0.000144,2]
[353711826,1739995850664,-151.0,0.000144,2]
[353711828,1739995850673,-151.0,0.000144,2]
[353711830,1739995850683,-151.0,0.000144,2]
[353711832,1739995850692,-179.65864857,0.000144,2]
[353711834,1739995850702,-7438.69753278,0.00014435,2]
[353711836,1739995850712,-500.0,0.00014438,2]
[353711838,1739995850721,-500.0,0.00014438,2]
[353711840,1739995850731,-500.0,0.00014438,2]
[353711842,1739995850740,-500.0,0.00014438,2]
[353711844,1739995850750,-500.0,0.00014438,2]
[353711845,1739995850759,-500.0,0.00014438,2]
[353711847,1739995850769,-500.0,0.00014438,2]
[353711856,1739995850845,-607.54,0.00014438,2]
[353711858,1739995850856,-500.0,0.00014438,2]
[353711860,1739995850867,-500.0,0.00014438,2]
[353711862,1739995850876,-500.0,0.00014438,2]
[353711864,1739995850887,-500.0,0.00014438,2]
[353711866,1739995850897,-1361.58,0.00014438,2]
[353711868,1739995850907,-535.42,0.00014438,2]
[353711870,1739995850921,-662.89,0.00014438,2]
[353711872,1739995850937,-500.0,0.00014438,2]
[353711873,1739995850948,-1052.75,0.00014438,2]
[353711875,1739995850958,-4949.66,0.00014438,2]
[353711877,1739995850968,-1622.89,0.00014438,2]
[353711879,1739995850980,-500.0,0.00014438,2]
[353711881,1739995850990,-540.74,0.00014438,2]
[353711883,1739995851000,-500.0,0.00014438,2]
[353711885,1739995851011,-872.69,0.00014438,2]
[353711887,1739995851021,-884.51,0.00014438,2]
[353711889,1739995851031,-521.52,0.00014438,2]
[353711891,1739995851041,-568.75,0.00014438,2]
[353711893,1739995851051,-500.0,0.00014438,2]
[353711895,1739995851061,-500.0,0.00014438,2]
[353711897,1739995851071,-624.56,0.00014438,2]
[353711899,1739995851084,-1483.63,0.00014438,2]
[353711901,1739995851095,-500.0,0.00014438,2]
[353711903,1739995851105,-873.64,0.00014438,2]
[353711905,1739995851115,-742.44,0.00014438,2]
[353711907,1739995851126,-1659.74,0.00014438,2]
[353711909,1739995851137,-3980.98,0.00014438,2]
[353711911,1739995851148,-2091.83,0.00014438,2]
[353711913,1739995851159,-500.0,0.00014438,2]
[353711915,1739995851169,-956.02,0.00014438,2]
[353711917,1739995851180,-6302.46,0.00014438,2]
[353711919,1739995851189,-1045.61,0.00014438,2]
[353711921,1739995851199,-500.0,0.00014438,2]
[353711922,1739995851209,-1626.86,0.00014438,2]
[353711924,1739995851219,-883.52,0.00014438,2]
[353711926,1739995851228,-608.0,0.00014438,2]
[353711928,1739995851238,-1309.08,0.00014438,2]
[353711930,1739995851248,-500.0,0.00014438,2]
[353711932,1739995851258,-505.3,0.00014438,2]
[353711934,1739995851268,-500.0,0.00014438,2]
[353711936,1739995851277,-2445.46,0.00014438,2]
[353711938,1739995851287,-23492.85,0.00014438,2]
[353711940,1739995851297,-548.98622033,0.00014438,2]
[353711942,1739995851306,-500.0,0.00014438,2]
[353711944,1739995851316,-600.0,0.00014438,2]
[353711946,1739995851325,-151.0,0.000145,2]
[353711948,1739995851335,-500.0,0.0001452,2]
[353711950,1739995851347,-165.37336994,0.0001452,2]
[353711952,1739995851360,-500.0,0.0001452,2]
[353711955,1739995851382,-500.0,0.0001452,2]
[353711958,1739995851398,-500.0,0.0001452,2]
[353711961,1739995851420,-500.0,0.0001452,2]
[353711964,1739995851440,-346.06,0.0001452,2]
[353711967,1739995851461,-607.54,0.0001452,2]
[353711970,1739995851478,-500.0,0.0001452,2]
[353711972,1739995851496,-500.0,0.0001452,2]
[353711975,1739995851510,-335.2119771,0.0001452,2]
[353711978,1739995851526,-1361.58,0.0001452,2]
[353711981,1739995851546,-535.42,0.0001452,2]
[353711984,1739995851566,-662.89,0.0001452,2]
[353711986,1739995851578,-500.0,0.0001452,2]
[353711989,1739995851598,-1052.75,0.0001452,2]
[353711991,1739995851613,-4949.66,0.0001452,2]
[353711994,1739995851629,-1622.89,0.0001452,2]
[353711997,1739995851643,-500.0,0.0001452,2]
[353711999,1739995851658,-540.74,0.0001452,2]
[353712001,1739995851673,-331.94108214,0.0001452,2]
[353712004,1739995851687,-872.69,0.0001452,2]
[353712006,1739995851702,-884.51,0.0001452,2]
[353712009,1739995851718,-521.52,0.0001452,2]
[353712011,1739995851732,-568.75,0.0001452,2]
[353712014,1739995851747,-500.0,0.0001452,2]
[353712016,1739995851762,-500.0,0.0001452,2]
[353712019,1739995851777,-624.56,0.0001452,2]
[353712021,1739995851792,-1483.63,0.0001452,2]
[353712024,1739995851806,-500.0,0.0001452,2]
[353712026,1739995851820,-873.64,0.0001452,2]
[353712028,1739995851835,-742.44,0.0001452,2]
[353712031,1739995851850,-1659.74,0.0001452,2]
[353712033,1739995851864,-3980.98,0.0001452,2]
[353712036,1739995851879,-2091.83,0.0001452,2]
[353712038,1739995851894,-500.0,0.0001452,2]